Cogmind - Beta 9.6 @@@ ROGUE MODE // 2020.07.23 @ 15:19:56 Player: Alexbot Result: Heading to fleet! Performance ------------- Evolutions (9) 4500 Regions Visited (31) 6200 Robots Destroyed (214) 1070 Value Destroyed (10025) 10025 Prototype IDs (70) 1400 Alien Tech Used (3) 600 Bonus (13515) 13515 TOTAL SCORE: 37310 Bonus ------- High Alert Combat Kills 1025 Follower Combat Kills 1859 Entered Garrisons 200 Used RIF Installer 500 Network Hubs Disabled 400 Aligned with FarCom 300 Met Imprinter 300 Met Zhirov 300 Met R17 at Cetus 500 Found Hidden Lab 3000 Used Core Reset Matrix 3000 Win 3000 Friendly Fire -869 Cogmind --------- Core Integrity 1597/1600 Matter 230/300 Energy 535/940 System Corruption 0% Temperature Cool (8) Movement Hovering (148) Ox1 Location To Fleet Rendezvous Parts ------- > --- POWER (1) -------- Particle Reactor > --- PROPULSION (4) --- Combat Linear Gravjet Combat Linear Gravjet Combat Linear Gravjet Combat Linear Gravjet > --- UTILITY (19) ----- Advanced Coolant Injector Large Storage Unit Large Storage Unit Large Storage Unit Improved Energy Well Experimental Terrain Scanner Experimental Terrain Scan Processor Advanced Armor Integrity Analyzer Advanced Transmission Jammer Experimental Propulsion Shielding Experimental Utility Shielding Experimental Weapon Shielding Advanced Powered Armor EM Dispersion Field AEGIS Remote Shield Improved Hacking Suite Improved Hacking Suite Advanced Hacking Suite Quantum Router > --- WEAPON (2) ------- Potential Cannon > --- INVENTORY (22) --- Armored Heavy Treads Improved Fusion Compressor Quantum Shading Machine Precision Matter Filter Precision Energy Filter Relay Coupler [NC] (30) Improved System Restoration Module Transdimensional Reconstructor Compact HERF Cannon Warp Cannon Hypervelocity Railgun Compact Tesla Bomb Launcher Compact Tesla Bomb Launcher Mini Smartbomb Launcher Guided Remote Datajack Improved Plasma Cutter Nanosword Peak State ------------ > --- POWER ------------ Particle Reactor > --- PROPULSION ------- Combat Linear Gravjet Combat Linear Gravjet Combat Linear Gravjet Combat Linear Gravjet > --- UTILITY ---------- Advanced Coolant Injector Large Storage Unit Large Storage Unit Large Storage Unit Improved Energy Well Experimental Terrain Scanner Experimental Terrain Scan Processor Advanced Armor Integrity Analyzer Advanced Transmission Jammer Experimental Propulsion Shielding Experimental Utility Shielding Experimental Weapon Shielding Advanced Powered Armor EM Dispersion Field AEGIS Remote Shield Improved Hacking Suite Improved Hacking Suite Advanced Hacking Suite Quantum Router > --- WEAPON ----------- Potential Cannon > --- INVENTORY -------- Armored Heavy Treads Improved Fusion Compressor Quantum Shading Machine Precision Matter Filter Precision Energy Filter Relay Coupler [NC] Improved System Restoration Module Transdimensional Reconstructor Compact HERF Cannon Warp Cannon Hypervelocity Railgun Compact Tesla Bomb Launcher Compact Tesla Bomb Launcher Mini Smartbomb Launcher Guided Remote Datajack Improved Plasma Cutter Nanosword [Rating: 192] Favorites ----------- Power Micro Fission Core Engine Improved Deuterium Engine Power Core Micro Fission Core Reactor Particle Reactor Propulsion Combat Gravmag System Treads Improved Treads Wheel Compact Wheel Hover Unit Combat Gravmag System Flight Unit Cooled Nuclear Pulse Thruster Utility Large Storage Unit Device Advanced Coolant Injector Storage Large Storage Unit Processor Signal Interpreter Hackware Improved Hacking Suite Protection Improved Weapon Shielding Weapon Gatling Laser Energy Gun Gatling Laser Energy Cannon Long-range Proton Cannon Ballistic Gun Heavy Assault Rifle Ballistic Cannon Flak Cannon Launcher Grenade Launcher Special Weapon Improved Plasma Cutter Slashing Weapon Power Sword Piercing Weapon Force Lance Build | -11 -10 -10 -9 -9 -9 -8 -8 -8 -7 -7 -6 -5 -5 -5 -5 -5 -5 -4 -4 -4 -4 -4 -4 -4 -4 -3 -3 -3 -3 -2 -1 ------- Run | Scr Mat Min Mat Min Exi Min Mat Sto Fac Low Zio Pro Fac Ext Cet Arc Hub Fac Was Fac Gar Fac Upp Upp Zhi Pro Res Arm Lab Res Acc Slots Evolved 18 | . . . 2 . . . 2 . 2 . . . 4 . . . . 2 . . . . . . . . 2 . . 2 2 Power . | . . . . . . . . . . . . . . . . . . . . . . . . . . . . . . . . Propulsion 2 | . . . . . . . . . . . . . 2 . . . . . . . . . . . . . . . . . . Utility 16 | . . . 2 . . . 2 . 2 . . . 2 . . . . 2 . . . . . . . . 2 . . 2 2 Weapon . | . . . . . . . . . . . . . . . . . . . . . . . . . . . . . . . . Parts Attached 278 | 6 4 1 6 1 . 1 6 3 13 1 1 4 28 11 8 4 9 20 8 11 20 13 15 6 5 2 25 21 6 13 6 Power 16 | 1 . . 1 . . . . 1 2 . . . 3 1 1 . . 1 . 1 1 1 . . . . 1 . . 1 . Engine 6 | 1 . . 1 . . . . 1 2 . . . 1 . . . . . . . . . . . . . . . . . . Core 7 | . . . . . . . . . . . . . 2 1 . . . 1 . 1 1 1 . . . . . . . . . Reactor 3 | . . . . . . . . . . . . . . . 1 . . . . . . . . . . . 1 . . 1 . Propulsion 41 | 2 . . 2 . . . . 2 2 . . . 4 . 2 . . 5 . . 1 4 . . . . 6 4 . 7 . Treads 13 | . . . 2 . . . . 2 2 . . . 3 . 2 . . . . . 1 . . . . . 1 . . . . Leg . | . . . . . . . . . . . . . . . . . . . . . . . . . . . . . . . . Wheel 2 | 2 . . . . . . . . . . . . . . . . . . . . . . . . . . . . . . . Hover 25 | . . . . . . . . . . . . . 1 . . . . 5 . . . 4 . . . . 4 4 . 7 . Flight 1 | . . . . . . . . . . . . . . . . . . . . . . . . . . . 1 . . . . Utility 123 | 1 1 . 2 . . . 4 . 5 . . . 12 3 2 2 5 7 5 7 8 8 9 4 3 1 10 12 2 5 5 Device 60 | . . . . . . . . . 1 . . . 4 . 1 2 1 2 3 6 3 4 7 3 . 1 6 10 2 1 3 Storage 16 | 1 . . 1 . . . 2 . . . . . 2 . 1 . . 2 1 . 1 2 1 . 1 . 1 . . . . Processor 5 | . 1 . . . . . 1 . . . . . 1 . . . . . . . . 1 . . . . 1 . . . . Hackware 11 | . . . . . . . . . . . . . 2 1 . . 2 1 . . . . 1 1 . . 1 . . 2 . Protection 31 | . . . 1 . . . 1 . 4 . . . 3 2 . . 2 2 1 1 4 1 . . 2 . 1 2 . 2 2 Artifact . | . . . . . . . . . . . . . . . . . . . . . . . . . . . . . . . . Weapon 98 | 2 3 1 1 1 . 1 2 . 4 1 1 4 9 7 3 2 4 7 3 3 10 . 6 2 2 1 8 5 4 . 1 Energy Gun 10 | . . . 1 . . . 1 . 1 1 . 2 1 . . . 1 1 . . . . 1 . . . . . . . . Energy Cannon 24 | . . . . . . . . . . . . . 4 3 2 . 2 . . 1 3 . . 1 . . 2 2 3 . 1 Ballistic Gun 24 | 2 3 1 . . . . 1 . 1 . . . . . . . . 1 1 2 4 . 4 . 1 . 3 . . . . Ballistic Cannon 5 | . . . . . . . . . . . 1 . . 2 . . 1 1 . . . . . . . . . . . . . Launcher 19 | . . . . 1 . 1 . . 2 . . 2 3 1 . . . . 1 . 3 . 1 . . . 1 3 . . . Special Weapon 5 | . . . . . . . . . . . . . . . 1 1 . 1 1 . . . . . . 1 . . . . . Impact Weapon . | . . . . . . . . . . . . . . . . . . . . . . . . . . . . . . . . Slashing Weapon 9 | . . . . . . . . . . . . . 1 1 . 1 . 2 . . . . . 1 1 . 1 . 1 . . Piercing Weapon 2 | . . . . . . . . . . . . . . . . . . 1 . . . . . . . . 1 . . . . Special Melee Weapon . | . . . . . . . . . . . . . . . . . . . . . . . . . . . . . . . . Unidentified Prototypes 23 | . . . . . . . . . . . . . 3 . 1 . . 2 1 . . 1 1 . 2 . 3 5 3 1 . Parts Lost 38 | . 1 2 1 1 . 1 . 3 5 . . . 11 . . . 3 . 1 1 1 . 1 3 . . 3 . . . . Power 6 | . 1 . . . . . . 1 . . . . 2 . . . . . . 1 . . . . . . 1 . . . . Propulsion 5 | . . 1 . . . . . . 1 . . . 2 . . . . . . . . . . 1 . . . . . . . Utility 16 | . . . . . . 1 . 1 2 . . . 4 . . . 2 . 1 . 1 . . 2 . . 2 . . . . Weapon 11 | . . 1 1 1 . . . 1 2 . . . 3 . . . 1 . . . . . 1 . . . . . . . . Highest Loss Streak 3 | . 1 2 1 1 . 1 . 3 2 . . . 3 . . . 3 . 1 1 1 . 1 1 . . 3 . . . . Average Slot Usage (%) 91 | . 81 75 74 97 88 88 92 99 87 100 100 100 78 87 86 82 83 96 93 98 83 97 99 97 82 91 90 99 97 93 96 Engine 3 | . 5 . 4 11 11 11 9 9 7 7 7 7 2 . . . . . . . . . . . . . . . . . . Core 1 | . . . . . . . . . . . . . 2 5 3 . . 4 5 4 5 5 5 5 5 5 1 . . . . Treads 9 | . . . 11 22 22 22 18 18 12 15 15 15 10 17 15 11 11 1 . . 4 1 . . . . . . . . . Hover 6 | . . . . . . . . . . . . . . . . . . 17 21 21 10 18 21 19 15 15 17 19 19 16 15 Device 7 | . . . . . . . . . 4 7 7 7 6 . 1 5 4 5 10 15 17 19 13 14 15 15 16 16 12 10 15 Storage 21 | . 14 14 14 22 22 22 29 27 23 23 23 23 22 23 26 23 23 26 19 15 13 16 20 21 21 21 19 19 19 16 15 Processor 7 | . 5 14 11 11 11 11 16 18 15 15 15 15 10 . . . . . . . . 4 5 5 5 5 5 9 9 8 7 Hackware 7 | . . . . . . . . . . . . . 3 15 11 11 18 19 17 15 10 5 7 11 15 15 11 14 14 18 15 Protection 9 | . . . 5 11 11 1 1 8 11 15 15 15 5 11 11 11 5 9 8 13 10 14 15 7 1 5 4 6 9 8 14 Energy Gun 1 | . . . 4 2 . . 4 8 1 6 7 6 . . . . 2 . . . . . . . . . . . . . . Energy Cannon 1 | . . . . . . . . . . . . . 3 4 10 4 3 . . . 1 . . 2 . . . 1 1 4 3 Ballistic Gun 3 | . 28 26 17 8 . . 4 9 9 7 1 . . . . . . 2 4 9 6 10 9 6 . . 2 1 . . . Ballistic Cannon 1 | . . . . . . . . . . . 5 7 2 . . . . 1 . . . . . . . . . . . . . Launcher 1 | . . . . 8 11 20 9 . . . . . 2 . . . . . . . . . . . . . . 1 2 . . Slashing Weapon 1 | . . . . . . . . . . . . . . 4 . 3 2 4 . . . . . . 2 5 3 4 3 4 2 Naked Turns . | . . . . . . . . . . . . . . . . . . . . . . . . . . . . . . . . Heaviest Build 155 | 10 13 10 52 52 49 49 84 84 93 93 96 96 135 131 152 152 150 155 94 75 115 88 97 94 86 71 96 95 103 117 133 Greatest Support 160 | 26 26 26 23 23 23 23 23 46 46 43 43 43 77 77 160 160 160 160 97 89 89 92 92 100 75 75 92 120 120 128 128 Greatest Overweight (x) 6 | . . . 2 2 2 2 3 3 3 2 2 2 6 1 2 . . 1 1 . 1 2 1 1 1 . 1 . . 1 1 Average Overweight (x) . | . . . . 2 2 2 2 1 1 2 2 2 2 1 . . . . . . . . . . . . . . . . . Largest Inventory Capacity 32 | 6 6 6 14 14 14 14 26 24 24 24 24 24 32 32 32 32 32 32 24 16 16 22 22 22 22 22 22 22 22 22 22 Average Capacity 22 | 5 6 6 8 14 14 14 22 24 24 24 24 24 31 32 32 32 32 25 18 16 16 17 22 22 22 22 22 22 22 22 22 Most Carried 32 | 4 6 6 5 8 10 10 16 18 24 21 24 24 32 32 32 32 32 32 24 16 16 20 22 22 22 22 22 22 22 22 22 Average Carried 21 | 2 5 5 4 7 8 9 11 16 22 21 23 24 29 31 31 30 31 25 17 15 14 15 20 21 21 21 21 21 21 21 18 Final Capacity 32 | 6 6 6 14 14 14 14 24 24 24 24 24 24 32 32 32 32 32 24 16 16 16 22 22 22 22 22 22 22 22 22 22 Final Carried 32 | 4 6 5 5 8 10 9 16 18 21 21 24 24 32 32 30 32 32 24 16 16 16 20 20 22 22 22 22 22 22 22 18 Class Distribution -------------------- 38% | Hauler-Mutant 17% | Hacker-Mutant 10% | Mutant 10% | Scavenger-Mutant 4% | Machinist-Scout 3% | Hacker-Scout Dominant Class ---------------- Mutant | -10/Materials Mutant | -10/Mines Scavenger-Mutant | -9/Materials Mutant | -9/Mines Mutant | -9/Exiles Mutant | -8/Mines Hauler-Mutant | -8/Materials Commander-Mutant | -8/Storage Hauler-Mutant | -7/Factory Hauler-Mutant | -7/Lower Caves Hauler-Mutant | -6/Zion Hauler-Mutant | -5/Proximity Caves Hauler-Mutant | -5/Factory Hacker-Mutant | -5/Extension Hauler-Mutant | -5/Cetus Hauler-Mutant | -5/Archives Hacker-Mutant | -5/Hub_04(d) Hacker-Mutant | -4/Factory Hacker-Mutant | -4/Waste Hacker-Mutant | -4/Factory Scavenger-Mutant | -4/Garrison Scavenger-Scout | -4/Factory Scavenger-Mutant | -4/Upper Caves Scavenger-Mutant | -4/Upper Caves Hacker-Mutant | -4/Zhirov Hacker-Scout | -3/Proximity Caves Hauler-Ninja | -3/Research Machinist-Scout | -3/Armory Machinist-Mutant | -3/Lab Wizard-Scout | -2/Research Wizard-Ninja | -1/Access Resources | -11 -10 -10 -9 -9 -9 -8 -8 -8 -7 -7 -6 -5 -5 -5 -5 -5 -5 -4 -4 -4 -4 -4 -4 -4 -4 -3 -3 -3 -3 -2 -1 ----------- Run | Scr Mat Min Mat Min Exi Min Mat Sto Fac Low Zio Pro Fac Ext Cet Arc Hub Fac Was Fac Gar Fac Upp Upp Zhi Pro Res Arm Lab Res Acc Matter Collected 6297 | 234 151 35 222 159 . 65 81 75 251 53 122 115 647 320 95 40 100 237 195 251 712 182 196 171 297 50 422 526 153 20 120 Remotely . | . . . . . . . . . . . . . . . . . . . . . . . . . . . . . . . . Salvage Created 11175 | . 354 89 417 263 . 61 100 41 355 53 . 263 983 921 363 567 1205 281 1313 283 898 207 76 . 297 . 463 916 . 85 321 Parts 455 | . 16 4 25 28 . 7 6 1 28 2 . 6 31 27 9 35 53 18 8 13 36 8 3 . 2 . 23 43 . 4 19 Haulers Intercepted 3 | . . . . . . . . . . . . . 1 . . . . . . . . 1 . . . . 1 . . . . Recyclers Shooed 3 | . 1 . . . . . . . . . . . . 1 . . . . . . . . . . . . 1 . . . . Parts Field Recycled 16 | . . . . . . . . . . . . . . . . . . 16 . . . . . . . . . . . . . Retrieved Matter 362 | . . . . . . . . . . . . . . . . . . 362 . . . . . . . . . . . . . Parts Self-Destructed 16 | . . . . . . . . . . 2 . 4 . . . . . . . . . . 5 3 2 . . . . . . Prevented 10 | . . . . . . . . . . . 4 2 . . . . . . . . . . . 4 . . . . . . . Kills | -11 -10 -10 -9 -9 -9 -8 -8 -8 -7 -7 -6 -5 -5 -5 -5 -5 -5 -4 -4 -4 -4 -4 -4 -4 -4 -3 -3 -3 -3 -2 -1 ------- Run | Scr Mat Min Mat Min Exi Min Mat Sto Fac Low Zio Pro Fac Ext Cet Arc Hub Fac Was Fac Gar Fac Upp Upp Zhi Pro Res Arm Lab Res Acc Combat Hostiles Destroyed 153 | . 6 2 8 9 . 5 2 1 7 1 . 8 18 13 4 4 6 4 5 4 22 1 1 . . . 4 15 . . 3 Melee 6 | . . . . . . . . . . . . . 1 . . . 2 1 . . . . . . . . . 2 . . . Guns 47 | . 6 2 8 . . . 2 1 4 1 . 1 . . . . 1 3 1 3 9 1 1 . . . 3 . . . . Cannons 25 | . . . . . . . . . . . . 2 3 7 . 1 . . . 1 4 . . . . . 1 3 . . 3 AOE 55 | . . . . 9 . 5 . . 3 . . 5 12 2 . . . . 4 . 9 . . . . . . 6 . . . Classes Destroyed 20 | . 3 . 1 6 . 1 . . 1 . . . 2 1 . 1 . . 1 . . . . . . . . 3 . . . Worker 21 | . . . . 3 . . . . 3 . . . 1 1 . . 11 1 . . . . . . . . . . . . 1 Builder 9 | . . . . 2 . . . . 1 . . . 2 . . . 1 1 . . . . . . . . 2 . . . . Tunneler 2 | . . . . 1 . . . . . . . . 1 . . . . . . . . . . . . . . . . . . Hauler 3 | . . . . . . . . . . . . . 1 . . . . . . . . 1 . . . . 1 . . . . Recycler 6 | . 1 . 1 . . . . . . . . . . . . . 4 . . . . . . . . . . . . . . Mechanic 1 | . . . . 1 . . . . . . . . . . . . . . . . . . . . . . . . . . . Operator 6 | . . . . . . . . . . . . . . . . 4 1 . . . . . . . . . . . . 1 . Drone 1 | . . . . . . . . . . . . . 1 . . . . . . . . . . . . . . . . . . Watcher 11 | . 1 . . . . . . . . . . . 2 . 2 . 1 1 . . . 1 . . . . . . . 1 2 Swarmer 15 | . . . . 3 . 4 . . 3 . . . . . . . . . . . 5 . . . . . . . . . . Saboteur 3 | . . . . . . . . . . . . . . . . . . . . . . . . . . . . 3 . . . Grunt 52 | . 6 2 4 5 . . . 1 . . . 7 8 5 . . . . . . 9 . 1 . . . . 4 . . . Brawler 3 | . . . . 1 . . . . . . . 1 1 . . . . . . . . . . . . . . . . . . Protector 1 | . . . . . . . . . . . . . . . . . . . . . . . . . . . . 1 . . . Sentry 37 | . . . 4 . . . 2 . 1 1 . . 3 3 . 4 2 1 . 3 5 1 . . . . 2 4 . . 1 Demolisher 1 | . . . . . . . . . . . . . . . . . . . . . . . . . . . . 1 . . . Hunter 12 | . . . . . . 1 . . . . . . 3 4 . . 2 . . . 2 . . . . . . . . . . Programmer 18 | . . . . . . . . . 3 . . . 3 . . . 2 3 . 1 . . . . . . 2 2 . . 2 Behemoth 2 | . . . . . . . . . . . . . . 1 . . . . . . 1 . . . . . . . . . . Compactor 5 | . . . . . . . . . . . . . . . . . . . 5 . . . . . . . . . . . . Cetus Guard 4 | . . . . . . . . . . . . . . . 4 . . . . . . . . . . . . . . . . Guerrilla 1 | . . . . . . . . . . . . . . 1 . . . . . . . . . . . . . . . . . Best Kill Streak 17 | . 5 1 5 6 . 4 1 1 7 1 . 4 6 4 4 2 17 2 3 2 4 1 1 . . . 2 7 . 1 2 Combat Bots Only 7 | . 4 1 4 3 . 4 1 1 3 1 . 4 3 4 3 2 3 2 3 2 4 1 1 . . . 2 7 . . 2 Max Kills in Single Turn 15 | . 1 1 1 3 . 4 1 1 3 1 . 1 4 1 1 1 15 1 2 1 3 1 1 . . . 1 2 . 1 1 Gunslinging . | . . . . . . . . . . . . . . . . . . . . . . . . . . . . . . . . Exploded 4 | . . . . 2 . 4 . . 2 . . 1 3 1 . . . . 2 . 3 . . . . . . 2 . . . Melee 1 | . . . . . . . . . . . . . 1 . . . 1 1 . . . . . . . . . 1 . . . Uniques/NPCs Destroyed . | . . . . . . . . . . . . . . . . . . . . . . . . . . . . . . . . Combat | -11 -10 -10 -9 -9 -9 -8 -8 -8 -7 -7 -6 -5 -5 -5 -5 -5 -5 -4 -4 -4 -4 -4 -4 -4 -4 -3 -3 -3 -3 -2 -1 -------- Run | Scr Mat Min Mat Min Exi Min Mat Sto Fac Low Zio Pro Fac Ext Cet Arc Hub Fac Was Fac Gar Fac Upp Upp Zhi Pro Res Arm Lab Res Acc Damage Taken 14356 | . 283 118 389 136 . 120 183 659 968 148 . 411 1879 1105 396 391 1623 708 50 271 1647 57 585 764 . 234 721 495 . . 15 Core 1970 | . 29 18 74 20 . 20 44 93 90 29 . 55 336 86 28 . 93 281 . 70 108 . 195 71 . 42 61 124 . . 3 Absorbed by Shields 927 | . . . . . . . . . . . . . 68 25 . . . . . 79 471 33 41 94 . . 23 80 . . 13 Reduced by Siege Mode 66 | . . . . . . . . . . . . . . . . . . . . . 27 . . . . . 39 . . . . Core Remaining (%) 76 | 100 . 81 . . . 71 . 75 . . . 75 . . . . 45 . . . . . . . . 33 . . 85 100 99 Volleys Fired 584 | . 15 9 29 17 . 3 7 16 45 5 . 14 61 43 16 27 22 11 19 16 75 22 12 10 . . 32 25 . 7 26 Largest 2 | . 2 2 2 1 . 2 2 2 2 2 . 2 2 1 2 2 2 2 1 2 2 2 2 2 . . 1 1 . 1 1 Hottest 200 | . 46 46 46 30 . 60 79 79 103 103 . 124 124 81 162 162 146 115 46 110 110 65 65 110 . . 90 94 . 100 200 Shots Fired 801 | . 30 17 52 17 . 6 14 29 68 9 . 20 71 43 29 40 30 17 19 31 110 32 14 14 . . 31 25 . 7 26 Gun 434 | . 30 17 52 3 . . 14 29 64 9 . 6 1 . . . 8 17 9 30 70 32 12 11 . . 20 . . . . Cannon 242 | . . . . . . . . . . . . 7 49 39 26 26 21 . . 1 15 . . 3 . . 11 11 . 7 26 Launcher 106 | . . . . 14 . 6 . . 4 . . 7 21 4 . . . . 9 . 25 . 2 . . . . 14 . . . Special 19 | . . . . . . . . . . . . . . . 3 14 1 . 1 . . . . . . . . . . . . Kinetic 413 | . 30 17 52 3 . . 7 16 54 5 . 7 13 5 . . 8 12 9 30 70 32 12 11 . . 20 . . . . Thermal 128 | . . . . . . . 7 13 10 4 . 6 10 . . 14 1 5 1 1 15 . . 3 . . 5 . . 7 26 Explosive 96 | . . . . 14 . 6 . . 4 . . 7 21 4 . . . . 9 . 25 . 2 . . . . 4 . . . Electromagnetic 161 | . . . . . . . . . . . . . 27 34 26 26 21 . . . . . . . . . 6 21 . . . Robot Hit Streak 38 | . 20 7 8 5 . 5 9 5 10 8 . 8 9 10 14 9 11 13 12 15 38 6 6 7 . . 15 17 . 7 21 Robot Miss Streak 6 | . 2 1 3 1 . . 1 2 6 1 . 3 5 1 2 3 2 2 2 3 2 2 . 2 . . 2 1 . . . Penetration Max 2 | . . . . . . . . . . . . . . 2 . . . . . . . 1 . . . . . . . . . Secondary Targets 2 | . 1 . . . . . . . . . . . . . . . . . . . 1 . . . . . . . . . . Max Gunslinging Chain 1 | . 1 . . . . . . . . . . . . . . . . . . . 1 . . . . . . . . . . Shots Hit Robots 595 | . 23 14 38 10 . 4 11 20 50 8 . 19 52 34 24 29 26 21 15 26 69 16 5 3 5 . 31 20 . 7 15 Core Hits 440 | . 12 4 16 30 . 7 4 8 23 4 . 28 60 32 9 19 32 14 8 10 54 9 2 . 3 . 11 30 . 4 7 Critical Hits 50 | . . . 1 . . . . . . . . . 1 8 1 3 1 2 1 4 10 4 1 . . . 6 . . 2 5 Critical Kills 22 | . . . . . . . . . . . . . . 4 . 2 . 1 1 1 6 2 . . . . 3 . . 1 1 Critical Parts Destroyed 20 | . . . 1 . . . . . . . . . 1 4 1 1 . 1 . 1 3 1 1 . . . 2 . . 1 2 Melee Attacks 134 | . . . . . . . . . . . . . 11 . . 3 13 23 . . . . . . 5 4 24 24 3 5 19 Impact . | . . . . . . . . . . . . . . . . . . . . . . . . . . . . . . . . Slashing 134 | . . . . . . . . . . . . . 11 . . 3 13 23 . . . . . . 5 4 24 24 3 5 19 Piercing . | . . . . . . . . . . . . . . . . . . . . . . . . . . . . . . . . Sneak Attacks 6 | . . . . . . . . . . . . . . . . 2 . 1 . . . . . . . . 2 . . . 1 Combat Hostiles . | . . . . . . . . . . . . . . . . . . . . . . . . . . . . . . . . Follow-up Attacks . | . . . . . . . . . . . . . . . . . . . . . . . . . . . . . . . . Damage Inflicted 30787 | . 389 203 542 1352 . 257 141 356 1020 163 . 1010 4062 1826 1002 1064 2782 849 1724 740 4629 530 425 115 575 . 1198 2159 . 326 1348 Guns 6538 | . 389 203 542 29 . . 141 356 704 163 . 96 . . . . 160 301 143 689 1410 530 85 115 . . 482 . . . . Cannons 6939 | . . . . . . . . . . . . 119 1235 1190 735 573 348 . . 51 594 . . . . . 379 364 . 214 1137 Explosions 13979 | . . . . 1323 . 257 . . 316 . . 795 2551 636 267 . 1873 . 1564 . 2625 . 340 . . . . 1432 . . . Melee 3128 | . . . . . . . . . . . . . 276 . . 305 401 548 . . . . . . 575 . 337 363 . 112 211 Ramming . | . . . . . . . . . . . . . . . . . . . . . . . . . . . . . . . . Kinetic 6365 | . 389 203 542 29 . . 70 195 614 71 . 119 262 197 . . 35 185 143 689 1410 530 85 115 . . 482 . . . . Thermal 4200 | . . . . 96 . . 71 161 90 92 . 96 248 128 267 186 16 116 17 51 973 . . . . . 241 . . 214 1137 Explosive 10502 | . . . . 1227 . 257 . . 227 . . 795 2500 508 . . . . 1564 . 2246 . 340 . . . . 838 . . . Electromagnetic 6592 | . . . . . . . . . 89 . . . 776 993 735 573 2330 . . . . . . . . . 138 958 . . . Impact . | . . . . . . . . . . . . . . . . . . . . . . . . . . . . . . . . Slashing 3128 | . . . . . . . . . . . . . 276 . . 305 401 548 . . . . . . 575 . 337 363 . 112 211 Piercing . | . . . . . . . . . . . . . . . . . . . . . . . . . . . . . . . . Highest Corruption 12 | . . . . . . . . . 5 5 5 . 1 2 2 2 12 5 5 5 5 5 5 4 4 4 10 9 4 . . Average Corruption 3 | . . . . . . . . . 3 5 5 . 1 1 2 2 4 3 5 5 5 5 4 4 4 4 6 4 4 . . Corruption Purged 10 | . . . . . . . . . . . . . . . . . . . . . . . 1 . . . 1 8 . . . Effects 196 | . . . . . . . . . 17 8 . . 3 4 5 3 16 10 6 12 26 19 7 8 3 5 20 21 3 . . Message Errors 36 | . . . . . . . . . 3 4 . . 1 2 1 . 1 3 . 2 4 3 2 1 . 1 4 4 . . . Matter Fused 50 | . . . . . . . . . 6 1 . . . . . . 5 3 1 4 4 8 2 . . 2 3 9 2 . . Heat Flow Errors 23 | . . . . . . . . . 2 . . . . . 1 1 2 1 1 1 3 2 2 2 . . 1 3 1 . . Energy Discharges 21 | . . . . . . . . . . . . . 2 . 2 . 3 1 . 1 2 4 . 1 1 1 2 1 . . . Parts Rejected 1 | . . . . . . . . . . . . . . . . . . . . . . . 1 . . . . . . . . Data Loss (minor) 28 | . . . . . . . . . 2 1 . . . 2 . 1 2 1 2 3 3 . . 2 2 1 4 2 . . . Data Loss (major) 10 | . . . . . . . . . 2 1 . . . . . . . . 1 . 4 . . . . . 1 1 . . . Misfires 4 | . . . . . . . . . . . . . . . . . 1 1 . . 2 . . . . . . . . . . Misdirections 2 | . . . . . . . . . . . . . . . . . . . . . . . . . . . 2 . . . . Targeting Errors 19 | . . . . . . . . . 2 1 . . . . 1 1 2 . 1 1 3 2 . 2 . . 2 1 . . . Weapon Failures 2 | . . . . . . . . . . . . . . . . . . . . . 1 . . . . . 1 . . . . Overload Shots . | . . . . . . . . . . . . . . . . . . . . . . . . . . . . . . . . Overflow Damage 1345 | . . . . 56 . . . . 20 . . . 196 7 36 . 176 38 . . 56 . 42 . 203 . 209 40 . 76 190 Projectiles 269 | . . . . . . . . . . . . . 97 7 36 . . . . . 31 . . . . . 48 . . 31 19 Explosions 383 | . . . . 56 . . . . 20 . . . 78 . . . 151 . . . 25 . 42 . . . . 11 . . . Melee 693 | . . . . . . . . . . . . . 21 . . . 25 38 . . . . . . 203 . 161 29 . 45 171 Knockbacks 2 | . . . . . . . . . . . . . 1 1 . . . . . . . . . . . . . . . . . Impact . | . . . . . . . . . . . . . . . . . . . . . . . . . . . . . . . . Kinetic 2 | . . . . . . . . . . . . . 1 1 . . . . . . . . . . . . . . . . . Secondary . | . . . . . . . . . . . . . . . . . . . . . . . . . . . . . . . . Self-Inflicted Damage 1005 | . . . . 59 . 12 . . 216 . . 35 439 32 . . 186 . . . . . . . . . . 26 . . . Shots 24 | . . . . 3 . 1 . . 6 . . 1 9 1 . . 2 . . . . . . . . . . 1 . . . Rammed . | . . . . . . . . . . . . . . . . . . . . . . . . . . . . . . . . Targets Rammed . | . . . . . . . . . . . . . . . . . . . . . . . . . . . . . . . . Kicked . | . . . . . . . . . . . . . . . . . . . . . . . . . . . . . . . . Crushed . | . . . . . . . . . . . . . . . . . . . . . . . . . . . . . . . . Highest Temperature 365 | . 14 . 1 5 . . 24 117 210 3 . 27 222 311 352 365 221 122 158 162 186 173 156 282 . . 198 138 69 . . Average Temperature 72 | . 5 . 1 2 . . 12 43 110 3 . 13 64 76 129 125 90 56 72 31 63 43 48 93 . . 73 57 42 . . Received Heat Transfer 2063 | . 132 66 168 30 . . 54 243 42 24 . 120 264 269 27 36 45 42 . 66 201 . 116 27 . 18 27 46 . . . Siege Activations 8 | . . . . . . . . . . . . . . . . . . . . . 6 . . . . . 2 . . . . Total Turns 79 | . . . . . . . . . . . . . . . . . . . . . 58 . . . . . 21 . . . . Longest Duration 21 | . . . . . . . . . . . . . . . . . . . . . 21 . . . . . 15 . . . . Robots Corrupted 24 | . . . . . . . . . . . . . 4 4 4 3 5 . . . . . . . . . . 4 . . . Combat Hostiles 20 | . . . . . . . . . . . . . 2 4 4 3 3 . . . . . . . . . . 4 . . . Parts Fried 48 | . . . . . . . . . . . . . 5 12 5 2 16 . . . . . . . . . 2 6 . . . Impact Corruptions . | . . . . . . . . . . . . . . . . . . . . . . . . . . . . . . . . Robots Melted . | . . . . . . . . . . . . . . . . . . . . . . . . . . . . . . . . Combat Hostiles . | . . . . . . . . . . . . . . . . . . . . . . . . . . . . . . . . Parts Melted 3 | . . . . . . . . 1 . . . . . . . . . . . . . . . . . . . . . 1 1 Heat Transferred 4383 | . . . . 100 . . 185 375 175 200 . 225 222 50 200 407 50 148 37 25 860 . . . . . 125 . . 185 814 Parts Sabotaged . | . . . . . . . . . . . . . . . . . . . . . . . . . . . . . . . . Parts Stolen . | . . . . . . . . . . . . . . . . . . . . . . . . . . . . . . . . Parts Stripped . | . . . . . . . . . . . . . . . . . . . . . . . . . . . . . . . . Power Chain Reactions 7 | . . . . . . . . . 1 . . . 1 1 1 . 3 . . . . . . . . . . . . . . Missiles Intercepted . | . . . . . . . . . . . . . . . . . . . . . . . . . . . . . . . . Alert | -11 -10 -10 -9 -9 -9 -8 -8 -8 -7 -7 -6 -5 -5 -5 -5 -5 -5 -4 -4 -4 -4 -4 -4 -4 -4 -3 -3 -3 -3 -2 -1 ------- Run | Scr Mat Min Mat Min Exi Min Mat Sto Fac Low Zio Pro Fac Ext Cet Arc Hub Fac Was Fac Gar Fac Upp Upp Zhi Pro Res Arm Lab Res Acc Peak Influence 1484 | . 174 97 304 238 . 147 140 612 305 . . . 358 471 207 214 962 936 149 700 1484 779 . . . . 450 650 . 154 261 Average Influence 272 | . 75 86 178 88 . 44 70 276 169 . . . 149 246 123 179 134 534 124 393 987 580 . . . . 164 301 . 65 119 Maximum Alert Level 4 | . . . 1 1 . . . 2 1 . . . 1 2 1 1 3 3 . 3 4 3 . . . . 2 2 . . 1 Low Security (%) 56 | 100 100 100 46 93 . 100 100 52 66 . . . 61 47 73 77 92 . 100 35 . 8 . . . . 76 34 . 100 70 Level 1 18 | . . . 53 6 . . . 4 33 . . . 38 35 26 22 3 22 . 15 . 9 . . . . . 28 . . 29 Level 2 15 | . . . . . . . . 43 . . . . . 17 . . . 54 . 31 17 59 . . . . 23 37 . . . Level 3 6 | . . . . . . . . . . . . . . . . . 3 23 . 16 43 22 . . . . . . . . . Level 4 2 | . . . . . . . . . . . . . . . . . . . . . 39 . . . . . . . . . . Level 5 . | . . . . . . . . . . . . . . . . . . . . . . . . . . . . . . . . High Security . | . . . . . . . . . . . . . . . . . . . . . . . . . . . . . . . . Max Security . | . . . . . . . . . . . . . . . . . . . . . . . . . . . . . . . . Squads Dispatched 37 | . 1 . 3 1 . . . 2 3 . . . 7 2 . . 2 2 . 1 . 8 . . . . 1 3 . 1 . Investigation 3 | . . . . . . . . . . . . . . . . . . . . . . 2 . . . . . 1 . . . Extermination 15 | . . . . . . . . . 3 . . . 3 . . . 1 2 . 1 . 1 . . . . 1 2 . 1 . Reinforcement 15 | . 1 . 3 . . . . . . . . . 4 2 . . 1 . . . . 4 . . . . . . . . . Assault 4 | . . . . 1 . . . 2 . . . . . . . . . . . . . 1 . . . . . . . . . Garrison . | . . . . . . . . . . . . . . . . . . . . . . . . . . . . . . . . Intercept . | . . . . . . . . . . . . . . . . . . . . . . . . . . . . . . . . Construction Impeded 3 | . . . . . . . . . . . . . 1 1 . . . . . . . 1 . . . . . . . . . Haulers Reinforced 1 | . . . . . . . . . . . . . 1 . . . . . . . . . . . . . . . . . . Stealth | -11 -10 -10 -9 -9 -9 -8 -8 -8 -7 -7 -6 -5 -5 -5 -5 -5 -5 -4 -4 -4 -4 -4 -4 -4 -4 -3 -3 -3 -3 -2 -1 --------- Run | Scr Mat Min Mat Min Exi Min Mat Sto Fac Low Zio Pro Fac Ext Cet Arc Hub Fac Was Fac Gar Fac Upp Upp Zhi Pro Res Arm Lab Res Acc Distress Signals 18 | . 1 . 2 . . . . 2 1 . . . 3 1 2 1 1 1 . 1 . . . . . . 2 . . . . Communications Jammed . | . . . . . . . . . . . . . . . . . . . . . . . . . . . . . . . . Distress Signals . | . . . . . . . . . . . . . . . . . . . . . . . . . . . . . . . . Times Spotted 332 | . 11 2 14 12 . 5 2 25 13 1 . 9 32 35 10 22 20 8 5 4 21 11 12 11 . 1 16 21 . 4 5 Peak Tracking Total 15 | . 5 2 9 4 . 4 2 11 3 1 . 4 5 7 5 1 15 3 4 2 6 4 4 6 . 1 5 7 . 1 4 Tactical Retreats 28 | . . . . 1 . . . . . . . 2 7 1 . 1 1 . . . 3 . 5 5 . . 2 . . . . Traps | -11 -10 -10 -9 -9 -9 -8 -8 -8 -7 -7 -6 -5 -5 -5 -5 -5 -5 -4 -4 -4 -4 -4 -4 -4 -4 -3 -3 -3 -3 -2 -1 ------- Run | Scr Mat Min Mat Min Exi Min Mat Sto Fac Low Zio Pro Fac Ext Cet Arc Hub Fac Was Fac Gar Fac Upp Upp Zhi Pro Res Arm Lab Res Acc Traps Triggered 28 | . 1 . . . . . . 2 2 . . . 2 3 . . . 3 . . 13 1 . . . . 1 . . . . Indirectly 2 | . . . . . . . . . 2 . . . . . . . . . . . . . . . . . . . . . . Trap Hack Attempts . | . . . . . . . . . . . . . . . . . . . . . . . . . . . . . . . . Triggered . | . . . . . . . . . . . . . . . . . . . . . . . . . . . . . . . . Disarmed 3 | . . . . . . . . . . . . . . . . . 3 . . . . . . . . . . . . . . Reprogrammed . | . . . . . . . . . . . . . . . . . . . . . . . . . . . . . . . . Reused . | . . . . . . . . . . . . . . . . . . . . . . . . . . . . . . . . Traps Extracted . | . . . . . . . . . . . . . . . . . . . . . . . . . . . . . . . . Installed . | . . . . . . . . . . . . . . . . . . . . . . . . . . . . . . . . Triggered 4 | . . . . . . . . . . . . 3 1 . . . . . . . . . . . . . . . . . . Machines | -11 -10 -10 -9 -9 -9 -8 -8 -8 -7 -7 -6 -5 -5 -5 -5 -5 -5 -4 -4 -4 -4 -4 -4 -4 -4 -3 -3 -3 -3 -2 -1 ---------- Run | Scr Mat Min Mat Min Exi Min Mat Sto Fac Low Zio Pro Fac Ext Cet Arc Hub Fac Was Fac Gar Fac Upp Upp Zhi Pro Res Arm Lab Res Acc Machines Disabled 60 | . . . . 1 . . . . 17 . . . 6 4 . 1 18 . . 2 3 1 . . . . . 2 1 1 3 Max in Single Turn 13 | . . . . 1 . . . . 8 . . . 4 . . . 13 . . 1 2 1 . . . . . 1 1 1 2 Garrison Access 6 | . . . . . . . . . . . . . . . . . . . . . . 1 . . . . 3 . . 1 1 Garrison Relay 1 | . . . . . . . . . . . . . . . . . . . . . 1 . . . . . . . . . . Network Hub 2 | . . . . . . . . . . . . . . . . . 2 . . . . . . . . . . . . . . Energy Cycler 1 | . . . . . . . . . . . . . . 1 . . . . . . . . . . . . . . . . . Machines Sabotaged . | . . . . . . . . . . . . . . . . . . . . . . . . . . . . . . . . Garrisons Compromised . | . . . . . . . . . . . . . . . . . . . . . . . . . . . . . . . . Overloaded Fab Kills . | . . . . . . . . . . . . . . . . . . . . . . . . . . . . . . . . Fab Network Shutdowns 5 | . . . . . . . . . . . . . . . . . . 1 . 1 . 1 . . . . 1 1 . . . Hacking | -11 -10 -10 -9 -9 -9 -8 -8 -8 -7 -7 -6 -5 -5 -5 -5 -5 -5 -4 -4 -4 -4 -4 -4 -4 -4 -3 -3 -3 -3 -2 -1 --------- Run | Scr Mat Min Mat Min Exi Min Mat Sto Fac Low Zio Pro Fac Ext Cet Arc Hub Fac Was Fac Gar Fac Upp Upp Zhi Pro Res Arm Lab Res Acc Machines Accessed 86 | . 1 1 1 . 1 . 2 5 2 . . . 3 9 1 . 5 7 . 5 . 8 . 1 5 . 11 6 . 7 5 Terminals 52 | . 1 1 1 . . . 2 5 2 . . . 2 9 1 . 5 2 . 2 . 5 . . . . 3 4 . 3 4 Fabricators 10 | . . . . . . . . . . . . . 1 . . . . 2 . 1 . 1 . . . . 3 1 . 1 . Repair Stations 6 | . . . . . . . . . . . . . . . . . . . . 1 . 2 . . . . 1 1 . 1 . Recycling Units 2 | . . . . . . . . . . . . . . . . . . 2 . . . . . . . . . . . . . Scanalyzers 2 | . . . . . . . . . . . . . . . . . . . . . . . . . . . 1 . . 1 . Garrison Access 7 | . . . . . . . . . . . . . . . . . . 1 . 1 . . . . . . 3 . . 1 1 Total Hacks 386 | . 3 4 2 . 1 . 7 9 5 . . . 7 46 10 . 22 44 . 19 . 47 . 1 18 . 30 54 . 42 15 Successful 229 | . 1 1 2 . 1 . 1 6 3 . . . 3 19 5 . 14 30 . 10 . 25 . 1 18 . 19 31 . 30 9 Failed 156 | . 2 3 . . . . 6 3 2 . . . 4 27 5 . 8 14 . 9 . 22 . . . . 11 22 . 12 6 Catastrophic 19 | . 1 1 . . . . 1 . . . . . . 6 1 . 1 2 . . . 4 . . . . . 1 . 1 . Database Lockouts 2 | . . . . . . . . . . . . . . . . . . . . . . . . . . . . 2 . . . Manual 180 | . . 3 . . 1 . 4 8 1 . . . 3 33 10 . 9 15 . 7 . 24 . . . . 4 34 . 21 3 Terminals 270 | . 3 4 2 . . . 7 9 5 . . . 5 46 10 . 22 30 . 10 . 31 . . . . 9 38 . 25 14 Fabricators 51 | . . . . . . . . . . . . . 2 . . . . 11 . 3 . 4 . . . . 12 10 . 9 . Repair Stations 31 | . . . . . . . . . . . . . . . . . . . . 5 . 12 . . . . 3 6 . 5 . Recycling Units 2 | . . . . . . . . . . . . . . . . . . 2 . . . . . . . . . . . . . Scanalyzers 4 | . . . . . . . . . . . . . . . . . . . . . . . . . . . 2 . . 2 . Garrison Access 8 | . . . . . . . . . . . . . . . . . . 1 . 1 . . . . . . 4 . . 1 1 Terminal Hacks 121 | . 1 1 2 . 1 . 1 2 2 . . . 1 11 3 . 12 14 . 4 . 9 . 1 18 . 4 16 . 12 6 Record 6 | . . . . . . . . . . . . . . . . . . . . . . . . . 6 . . . . . . Part Schematic 16 | . . . . . . . . . . . . . 1 3 . . 1 2 . . . . . . 4 . . 1 . 4 . Robot Analysis 11 | . . . . . . . . . . . . . . . . . . . . . . . . . 4 . . 4 . 3 . Prototype ID Bank 7 | . . . 1 . . . . . . . . . . . . . . . . . . . . . 4 . 1 1 . . . Open Door 4 | . . . . . . . . . . . . . . 3 . . . . . . . . . 1 . . . . . . . Level Access Points 3 | . . . . . . . . . . . . . . . . . . 1 . . . . . . . . . . . 1 1 Branch Access Points 8 | . 1 . 1 . . . 1 . 1 . . . . . . . . 1 . 1 . 1 . . . . 1 . . . . Emergency Access Points 4 | . . . . . . . . . . . . . . . . . 1 1 . . . . . . . . . 2 . . . Machine Index 2 | . . . . . . . . . . . . . . . . . . . . . . . . . . . 1 . . 1 . Terminal Index 5 | . . . . . . . . 1 . . . . . . . . 1 1 . . . . . . . . . 1 . . 1 Fabricator Index 2 | . . . . . . . . . . . . . . . . . . . . 1 . . . . . . . . . 1 . Garrison Index 1 | . . . . . . . . . . . . . . . . . . . . 1 . . . . . . . . . . . Alert Level 8 | . . . . . . . . . . . . . . 1 . . 1 2 . . . 2 . . . . . . . 1 1 Unreport Threat 18 | . . . . . . . . . 1 . . . . 3 3 . . 4 . . . 3 . . . . . 4 . . . Locate Traps 6 | . . . . . . . . . . . . . . . . . 3 1 . . . . . . . . . 1 . . 1 Disarm Traps 1 | . . . . . . . . . . . . . . . . . 1 . . . . . . . . . . . . . . Recall Investigation 1 | . . . . . . . . . . . . . . . . . . . . . . . . . . . . 1 . . . Recall Extermination 3 | . . . . . . . . . . . . . . . . . . 1 . . . 1 . . . . . 1 . . . Recall Reinforcements 1 | . . . . . . . . . . . . . . . . . . . . . . 1 . . . . . . . . . Recall Assault 1 | . . . . . . . . . . . . . . . . . . . . . . 1 . . . . . . . . . Hauler Manifests 6 | . . . . . . . . 1 . . . . . . . . 2 . . 1 . . . . . . 1 . . 1 . Registered Components 1 | . . . . . . . . . . . . . . . . . . . . . . . . . . . . . . . 1 Registered Prototypes 1 | . . . . . . . . . . . . . . . . . . . . . . . . . . . . . . . 1 Zone Layout 4 | . . 1 . . . . . . . . . . . 1 . . 2 . . . . . . . . . . . . . . EX-Prototype ID Bank 1 | . . . . . 1 . . . . . . . . . . . . . . . . . . . . . . . . . . Fabricator Hacks 34 | . . . . . . . . . . . . . 2 . . . . 7 . 2 . 2 . . . . 7 7 . 7 . Network Status 2 | . . . . . . . . . . . . . . . . . . 1 . . . . . . . . 1 . . . . Load Schematic 16 | . . . . . . . . . . . . . 1 . . . . 3 . 1 . 1 . . . . 4 3 . 3 . Build 16 | . . . . . . . . . . . . . 1 . . . . 3 . 1 . 1 . . . . 2 4 . 4 . Repair Station Hacks 19 | . . . . . . . . . . . . . . . . . . . . . . 11 . . . . . 4 . 4 . Scan Component 10 | . . . . . . . . . . . . . . . . . . . . . . 6 . . . . . 2 . 2 . Repair 9 | . . . . . . . . . . . . . . . . . . . . . . 5 . . . . . 2 . 2 . Recycling Unit Hacks 2 | . . . . . . . . . . . . . . . . . . 2 . . . . . . . . . . . . . Report Inventory 2 | . . . . . . . . . . . . . . . . . . 2 . . . . . . . . . . . . . Scanalyzer 3 | . . . . . . . . . . . . . . . . . . . . . . . . . . . 1 . . 2 . Insert Component 3 | . . . . . . . . . . . . . . . . . . . . . . . . . . . 1 . . 2 . Garrison Access Hacks 8 | . . . . . . . . . . . . . . . . . . 1 . 1 . . . . . . 4 . . 1 1 Unlock Access 2 | . . . . . . . . . . . . . . . . . . 1 . 1 . . . . . . . . . . . Seal Access 5 | . . . . . . . . . . . . . . . . . . . . . . . . . . . 3 . . 1 1 Coupler Status 1 | . . . . . . . . . . . . . . . . . . . . . . . . . . . 1 . . . . Unauthorized Hacks 42 | . . . . . . . . 4 1 . . . . 8 2 . 2 6 . 3 . 3 . . . . 3 4 . 4 2 Terminals 36 | . . . . . . . . 4 1 . . . . 8 2 . 2 4 . 2 . 2 . . . . 2 4 . 3 2 Track 4 | . . . . . . . . 1 . . . . . 1 1 . . . . . . . . . . . . 1 . . . Assimilate 3 | . . . . . . . . . . . . . . . . . . 1 . . . . . . . . 1 . . 1 . Botnet 23 | . . . . . . . . 3 1 . . . . 4 1 . 1 2 . 2 . 2 . . . . 1 2 . 2 2 Disrupt 5 | . . . . . . . . . . . . . . 2 . . 1 1 . . . . . . . . . 1 . . . Operators 1 | . . . . . . . . . . . . . . 1 . . . . . . . . . . . . . . . . . Fabricators 6 | . . . . . . . . . . . . . . . . . . 2 . 1 . 1 . . . . 1 . . 1 . Siphon 6 | . . . . . . . . . . . . . . . . . . 2 . 1 . 1 . . . . 1 . . 1 . Repair Stations . | . . . . . . . . . . . . . . . . . . . . . . . . . . . . . . . . Recycling Units . | . . . . . . . . . . . . . . . . . . . . . . . . . . . . . . . . Scanalyzers . | . . . . . . . . . . . . . . . . . . . . . . . . . . . . . . . . Garrison Access . | . . . . . . . . . . . . . . . . . . . . . . . . . . . . . . . . Data Cores Recovered 1 | . . . . . . . . . . . . . . . . . . . . . . . . . . . . . . 1 . Used 1 | . . . . . . . . . . . . . . . . . . . . . . . . . . . . . . 1 . Hacking Detections 56 | . 1 1 . . . . 2 3 1 . . . 2 8 1 . 5 3 . 3 . 8 . . . . 7 4 . 3 4 Full Trace Events 2 | . . . . . . . . . . . . . . . . . . . . . . 2 . . . . . . . . . Feedback Events . | . . . . . . . . . . . . . . . . . . . . . . . . . . . . . . . . Feedback Blocked . | . . . . . . . . . . . . . . . . . . . . . . . . . . . . . . . . Robot Schematics Acquired . | . . . . . . . . . . . . . . . . . . . . . . . . . . . . . . . . Robots Built . | . . . . . . . . . . . . . . . . . . . . . . . . . . . . . . . . Matter . | . . . . . . . . . . . . . . . . . . . . . . . . . . . . . . . . Time . | . . . . . . . . . . . . . . . . . . . . . . . . . . . . . . . . Total Robot Build Rating . | . . . . . . . . . . . . . . . . . . . . . . . . . . . . . . . . Part Schematics Acquired 16 | . . . . . . . . . . . . . 1 3 . . 1 2 . . . . . . 4 . . 1 . 4 . Parts Built 19 | . . . . . . . . . . . . . 1 . . . . 2 . 1 . 1 . . . . 2 6 . 6 . Matter 3991 | . . . . . . . . . . . . . 285 . . . . 639 . 213 . 213 . . . . 531 1214 . 896 . Time 1378 | . . . . . . . . . . . . . 152 . . . . 380 . 76 . 152 . . . . 208 208 . 202 . Total Part Build Rating 134 | . . . . . . . . . . . . . 5 . . . . 10 . 5 . 5 . . . . 11 46 . 52 . Parts Repaired 9 | . . . . . . . . . . . . . . . . . . . . . . 5 . . . . . 2 . 2 . Time 387 | . . . . . . . . . . . . . . . . . . . . . . 233 . . . . . 80 . 74 . Parts Recycled . | . . . . . . . . . . . . . . . . . . . . . . . . . . . . . . . . Recycled Matter . | . . . . . . . . . . . . . . . . . . . . . . . . . . . . . . . . Retrieved Matter . | . . . . . . . . . . . . . . . . . . . . . . . . . . . . . . . . Retrieved Components . | . . . . . . . . . . . . . . . . . . . . . . . . . . . . . . . . Parts Scanalyzed . | . . . . . . . . . . . . . . . . . . . . . . . . . . . . . . . . Part Schematics Acquired . | . . . . . . . . . . . . . . . . . . . . . . . . . . . . . . . . Parts Damaged . | . . . . . . . . . . . . . . . . . . . . . . . . . . . . . . . . Bothacking | -11 -10 -10 -9 -9 -9 -8 -8 -8 -7 -7 -6 -5 -5 -5 -5 -5 -5 -4 -4 -4 -4 -4 -4 -4 -4 -3 -3 -3 -3 -2 -1 ------------ Run | Scr Mat Min Mat Min Exi Min Mat Sto Fac Low Zio Pro Fac Ext Cet Arc Hub Fac Was Fac Gar Fac Upp Upp Zhi Pro Res Arm Lab Res Acc Used RIF Installer 1 | . . . . . . . . . . . . . . . . . . . . . 1 . . . . . . . . . . Robots Hacked . | . . . . . . . . . . . . . . . . . . . . . . . . . . . . . . . . Non-combat . | . . . . . . . . . . . . . . . . . . . . . . . . . . . . . . . . Combat . | . . . . . . . . . . . . . . . . . . . . . . . . . . . . . . . . Robot Hacks Applied . | . . . . . . . . . . . . . . . . . . . . . . . . . . . . . . . . Relay Couplers Released 5 | . . . . . . . . . . . . . . . . . . . . . 5 . . . . . . . . . . Machine Destruction 5 | . . . . . . . . . . . . . . . . . . . . . 5 . . . . . . . . . . Attached 1 | . . . . . . . . . . . . . . . . . . . . . . . 1 . . . . . . . . Robots Rewired 20 | . . . . . . . . . . . . . . 15 1 . . . . . . . . . . . . 4 . . . Allies Hacked 2 | . . . . . . . . . . . . . 1 . . . . . . . . . . . . . . 1 . . . Hacks Repelled . | . . . . . . . . . . . . . . . . . . . . . . . . . . . . . . . . Allies | -11 -10 -10 -9 -9 -9 -8 -8 -8 -7 -7 -6 -5 -5 -5 -5 -5 -5 -4 -4 -4 -4 -4 -4 -4 -4 -3 -3 -3 -3 -2 -1 -------- Run | Scr Mat Min Mat Min Exi Min Mat Sto Fac Low Zio Pro Fac Ext Cet Arc Hub Fac Was Fac Gar Fac Upp Upp Zhi Pro Res Arm Lab Res Acc Total Allies 44 | . . . . 1 . . . 12 . . . . 3 20 1 . . . 1 . . . . . . . 1 4 . 1 . Largest Group 12 | . . . . 1 . . . 10 . . . . 3 12 5 1 . . 1 . . . . . . . 1 5 . 1 1 Highest-Rated Group 459 | . . . . 31 . . . 203 . . . . 93 459 138 82 . . 46 . . . . . . . 44 244 . 44 44 Highest-Rated Ally 156 | . . . . 31 . . . 31 . . . . 31 156 82 82 . . 46 . . . . . . . 44 50 . 44 44 Total Orders 23 | . . . . . . . . . . . . . 2 . . . . . . . . . . . . . 2 15 . 4 . STAY 9 | . . . . . . . . . . . . . 1 . . . . . . . . . . . . . . 7 . 1 . GOTO 4 | . . . . . . . . . . . . . . . . . . . . . . . . . . . 1 2 . 1 . FOLLOW 9 | . . . . . . . . . . . . . . . . . . . . . . . . . . . 1 6 . 2 . EXPLORE 1 | . . . . . . . . . . . . . 1 . . . . . . . . . . . . . . . . . . Ally Attacks 348 | . . . . 6 . . . 94 . . . . 23 154 33 1 . . 11 . . . . . . . . 26 . . . Total Damage 7803 | . . . . 106 . . . 1335 . . . . 411 3629 824 55 . . 340 . . . . . . . . 1103 . . . Kills 57 | . . . . 2 . . . 14 . . . . 8 25 3 . . . . . . . . . . . . 5 . . . Allies Corrupted 2 | . . . . . . . . . . . . . . . . 1 . . . . . . . . . . . 1 . . . Allies Melted . | . . . . . . . . . . . . . . . . . . . . . . . . . . . . . . . . Intel | -11 -10 -10 -9 -9 -9 -8 -8 -8 -7 -7 -6 -5 -5 -5 -5 -5 -5 -4 -4 -4 -4 -4 -4 -4 -4 -3 -3 -3 -3 -2 -1 ------- Run | Scr Mat Min Mat Min Exi Min Mat Sto Fac Low Zio Pro Fac Ext Cet Arc Hub Fac Was Fac Gar Fac Upp Upp Zhi Pro Res Arm Lab Res Acc Robot Analysis Total 11 | . . . . . . . . . . . . . . . . . . . . . . . . . 4 . . 4 . 3 . Derelict Logs Recovered 6 | . . . . 1 . . . . . 1 2 1 . . . . . . . . . . 1 . . . . . . . . Drone Launches 14 | . . . . . . . . . . . . . 14 . . . . . . . . . . . . . . . . . . Drone Recoveries . | . . . . . . . . . . . . . . . . . . . . . . . . . . . . . . . . Exploration | -11 -10 -10 -9 -9 -9 -8 -8 -8 -7 -7 -6 -5 -5 -5 -5 -5 -5 -4 -4 -4 -4 -4 -4 -4 -4 -3 -3 -3 -3 -2 -1 ------------- Run | Scr Mat Min Mat Min Exi Min Mat Sto Fac Low Zio Pro Fac Ext Cet Arc Hub Fac Was Fac Gar Fac Upp Upp Zhi Pro Res Arm Lab Res Acc Turns Passed 19201 | 53 252 96 298 1026 457 186 289 364 1166 295 1744 868 1972 1202 315 303 731 887 197 394 1104 684 328 299 165 189 1049 1080 154 660 394 Spaces Moved 11417 | 44 216 72 146 469 229 89 119 157 521 137 848 404 732 519 141 122 351 576 190 307 501 682 414 289 189 200 982 746 179 494 352 Core 4 | 4 . . . . . . . . . . . . . . . . . . . . . . . . . . . . . . . Treads 5501 | . . . 63 469 229 89 119 157 521 137 848 404 732 519 141 122 351 56 . . 426 97 . . . . 21 . . . . Legs . | . . . . . . . . . . . . . . . . . . . . . . . . . . . . . . . . Wheels 411 | 40 216 72 83 . . . . . . . . . . . . . . . . . . . . . . . . . . . . Hover 5501 | . . . . . . . . . . . . . . . . . . 520 190 307 75 585 414 289 189 200 961 746 179 494 352 Flight . | . . . . . . . . . . . . . . . . . . . . . . . . . . . . . . . . Fastest Speed 48 | 50 90 90 100 200 200 200 200 180 180 205 205 205 186 186 160 160 160 60 52 60 60 60 60 52 72 72 65 65 68 48 48 Average Speed 130 | 87 90 96 137 200 200 200 212 195 192 205 205 205 222 186 177 160 160 110 68 60 162 76 60 74 74 72 67 67 68 67 50 Slowest Speed 290 | 100 90 100 200 200 200 200 220 220 220 205 205 205 290 186 205 160 160 160 125 60 186 181 125 142 142 72 180 68 68 152 148 Overloaded Moves 84 | . . . . . . . . . . . . . . . . . . . 68 . . . . 16 . . . . . . . Propulsion Burnouts . | . . . . . . . . . . . . . . . . . . . . . . . . . . . . . . . . Robots Hopped 1 | . . . . . . . . . . . . . . 1 . . . . . . . . . . . . . . . . . Cave-ins Triggered 1 | . . . . . . . . . . . . . . . . . . . . . . . . 1 . . . . . . . Exploration Rate (%) 44 | 4 45 22 26 91 62 27 15 42 15 30 85 63 45 72 64 74 36 14 71 8 69 21 63 51 60 44 29 38 95 13 15 Regions Visited 31 Branch Regions 18 Pre-discovered Areas 5 | . . . . . . . . . . . 1 . . . . . . . . . . . 1 . 3 . . . . . . Known Exits Taken 17 | . 1 1 1 1 1 1 1 1 1 1 1 1 . . . . . . . 1 . 1 . . . 1 1 . . 1 . Unknown Exits Taken 11 | 1 . . . . . . . . . . . . 1 1 1 1 1 . . . . . 1 1 1 . . 1 1 . . Scrap Searched 10 | . . . . 3 . . . . . . 2 . . . . . . . . . . . 3 1 . 1 . . . . . Spaces Dug 86 | . . . . . . . . . . . . . . . . . 2 7 . . . 13 10 4 . 4 15 11 . 4 16 Terrain Destroyed 1320 | . . . . 119 . 34 . . 52 . . 54 165 25 18 . 349 13 89 6 193 21 42 12 . 4 15 87 . 4 18 Melee 57 | . . . . . . . . . . . . . . . . . 1 7 . . . . . . . 4 15 11 . 3 16 Projectile 81 | . . . . . . . . . . . . . . . . . 6 6 8 6 3 21 16 12 . . . . . 1 2 AOE 1182 | . . . . 119 . 34 . . 52 . . 54 165 25 18 . 342 . 81 . 190 . 26 . . . . 76 . . . Actions | -11 -10 -10 -9 -9 -9 -8 -8 -8 -7 -7 -6 -5 -5 -5 -5 -5 -5 -4 -4 -4 -4 -4 -4 -4 -4 -3 -3 -3 -3 -2 -1 --------- Run | Scr Mat Min Mat Min Exi Min Mat Sto Fac Low Zio Pro Fac Ext Cet Arc Hub Fac Was Fac Gar Fac Upp Upp Zhi Pro Res Arm Lab Res Acc Total 14810 | 55 249 81 190 540 229 92 140 186 619 142 855 421 1000 715 180 173 471 784 237 494 731 823 478 361 208 242 1324 1264 209 805 512 Wait 1877 | 2 . . 7 51 . . 1 . 24 . . . 127 16 4 10 67 130 . 154 81 87 29 51 . 32 212 408 2 276 106 Move 11384 | 43 215 71 145 468 228 88 118 156 520 136 847 403 731 516 140 121 350 576 189 306 500 681 413 288 188 199 981 745 178 493 351 Hop 1 | . . . . . . . . . . . . . . 1 . . . . . . . . . . . . . . . . . Pick Up 164 | 4 7 . 2 3 1 . 7 4 11 . 5 . 21 8 3 5 5 5 11 4 5 9 4 4 3 2 12 10 7 2 . Fast Attach 96 | 6 1 . 4 . . . 3 . 5 . . . 8 2 3 . 2 4 4 1 5 7 3 . 3 1 12 7 6 8 1 Attach 76 | . . 1 1 . . 1 1 1 4 . . . 10 2 1 . 4 9 3 2 10 2 2 2 2 1 7 2 1 2 5 Detach 47 | . . . . . . . 1 . . . . . 5 2 1 . 2 4 3 . 13 . 2 1 1 1 4 2 2 . 3 Swap 110 | . 3 . 1 1 . . 2 2 4 1 1 4 10 7 4 4 3 7 1 8 5 4 10 4 1 . 6 12 . 5 . Drop 161 | . 8 . 1 . . . . 3 6 . 2 . 9 10 8 3 3 15 7 3 10 5 3 1 5 2 21 18 10 7 1 Fire 584 | . 15 9 29 17 . 3 7 16 45 5 . 14 61 43 16 27 22 11 19 16 75 22 12 10 . . 32 25 . 7 26 Melee 134 | . . . . . . . . . . . . . 11 . . 3 13 23 . . . . . . 5 4 24 24 3 5 19 Ram . | . . . . . . . . . . . . . . . . . . . . . . . . . . . . . . . . Kick . | . . . . . . . . . . . . . . . . . . . . . . . . . . . . . . . . Crush . | . . . . . . . . . . . . . . . . . . . . . . . . . . . . . . . . Escape Stasis 54 | . . . . . . . . 4 . . . . . 4 . . . . . . 27 6 . . . . 13 . . . . Rewire 115 | . . . . . . . . . . . . . . 104 . . . . . . . . . . . . . 11 . . . Trap . | . . . . . . . . . . . . . . . . . . . . . . . . . . . . . . . . Miscellaneous 7 | . . . . . . . . . . . . . 7 . . . . . . . . . . . . . . . . . . Route ------- -11/Scrapyard -10/Materials (discovered 4 exits: *Mat x2 / *Min x2) -10/Mines -9/Materials -9/Mines (discovered 3 exits: *Mat x2 / *Exi) -9/Exiles -8/Mines -8/Materials (discovered 2 exits: *Sto x2) -8/Storage -7/Factory (discovered 3 exits: [*Fac] / *Low x2) -7/Lower Caves -6/Zion -5/Proximity Caves -5/Factory (discovered 3 exits: *Fac x2 / *Ext) -5/Extension (discovered 3 exits: *Fac x2 / *Cet) -5/Cetus (discovered 2 exits: *Fac / [*Arc]) -5/Archives (discovered 3 exits: *Fac / *Hub x2) -5/Hub_04(d) -4/Factory (discovered 7 exits: Res x4 / Upp x2 / Gar) -4/Waste -4/Factory (discovered 3 exits: Upp x2 / Gar) -4/Garrison (discovered 2 exits: *Fac x2) -4/Factory (discovered 3 exits: *Res / *Upp x2) -4/Upper Caves -4/Upper Caves (discovered 2 exits: *Res / *Zhi) -4/Zhirov -3/Proximity Caves -3/Research (discovered 3 exits: *Arm / Qua x2) -3/Armory (discovered 3 exits: Res x2 / *Lab) -3/Lab -2/Research (discovered 3 exits: *Acc x3) -1/Access To Fleet Rendezvous History --------- Turn | Location | Event 9 | -11/Scrapyard | Discovered new exit (range 16) 54 | -11/Scrapyard | Entered Materials 182 | -10/Materials | Discovered new exit (range 5) 249 | -10/Materials | Discovered new exit (range 3) 266 | -10/Materials | Identified exit to Materials 298 | -10/Materials | Identified exit to Mines 306 | -10/Materials | Entered Mines 317 | -10/Mines | Build established: Mutant 379 | -10/Mines | Discovered exit to Materials (range 13) 402 | -10/Mines | Entered Materials 402 | -9/Materials | Evolved 2 slots: Utility x2 425 | -9/Materials | Identified exit to Mines 700 | -9/Materials | Entered Mines 713 | -9/Mines | Met a Derelict bent on vengeance 807 | -9/Mines | Received a Rocket Launcher from a helpful Derelict 845 | -9/Mines | Build established: Scavenger-Mutant 916 | -9/Mines | Discovered new exit (range 12) 1127 | -9/Mines | Identified exit to Materials 1220 | -9/Mines | Build established: Mutant 1376 | -9/Mines | Met a Derelict testing a Signal Generator 1718 | -9/Mines | Deemed a non-threat by the Exiles lab entrance 1718 | -9/Mines | Discovered new exit (range 5) 1724 | -9/Mines | Identified exit to Exiles 1726 | -9/Mines | Entered Exiles 1772 | -9/Exiles | Met 8R-AWN 1804 | -9/Exiles | Met EX-HEX 1866 | -9/Exiles | Met EX-BIN 1908 | -9/Exiles | Aligned with FarCom system 1910 | -9/Exiles | Given EX-Vault access code 1960 | -9/Exiles | Opened EX-Vault 1972 | -9/Exiles | Found YOLO Cannon 2015 | -9/Exiles | Warned to stay clear of 0b10 Research branches 2071 | -9/Exiles | Met EX-DEC 2161 | -9/Exiles | Discovered new exit (range 14) 2181 | -9/Exiles | Identified exit to Mines 2183 | -9/Exiles | Left Exiles lab with YOLO Cannon 2183 | -9/Exiles | Entered Mines 2332 | -8/Mines | Discovered exit to Materials (range 10) 2369 | -8/Mines | Entered Materials 2369 | -8/Materials | Evolved 2 slots: Utility x2 2500 | -8/Materials | Identified exit to Storage 2658 | -8/Materials | Entered Storage 2729 | -8/Storage | Assisted by bots powering up and referring to "LRC-V3" 2956 | -8/Storage | Discovered new exit (range 10) 2971 | -8/Storage | Met a pair of Derelict thieves 3020 | -8/Storage | Identified exit to Factory 3022 | -8/Storage | Entered Factory 3022 | -7/Factory | Evolved 2 slots: Utility x2 3046 | -7/Factory | Lost 3 parts (1p1u1w) 3190 | -7/Factory | Identified exit to Lower Caves 3290 | -7/Factory | Build established: Hauler-Mutant 4072 | -7/Factory | Discovered new exit (range 19) 4188 | -7/Factory | Entered Lower Caves 4200 | -7/Lower Caves | Attracted the attention of an 0b10 checkpoint 4241 | -7/Lower Caves | Learned Factory stockpile data 4457 | -7/Lower Caves | A Derelict revealed a hidden shortcut to a safe place 4481 | -7/Lower Caves | Identified exit to Zion 4483 | -7/Lower Caves | Entered Zion 4575 | -6/Zion | System corruption cleaned by Quarantine Array 4669 | -6/Zion | Learned Factory emergency access door positions 4796 | -6/Zion | Learned 8 Factory zone layouts 4952 | -6/Zion | Found Relay Coupler [Programmer] 4955 | -6/Zion | Found Relay Coupler [Programmer] 4967 | -6/Zion | Found Relay Coupler [Programmer] 4970 | -6/Zion | Found Relay Coupler [Programmer] 5065 | -6/Zion | Rebuked by Imprinter 6178 | -6/Zion | Discovered new exit (range 19) 6221 | -6/Zion | Identified exit to Proximity Caves 6227 | -6/Zion | Entered Proximity Caves 6412 | -5/Proximity Caves | Spotted B-75 Beast 6849 | -5/Proximity Caves | Learned Factory interactive machine intel 7068 | -5/Proximity Caves | Discovered new exit (range 7) 7093 | -5/Proximity Caves | Identified exit to Factory 7095 | -5/Proximity Caves | Entered Factory 7095 | -5/Factory | Evolved 4 slots: Propulsion x2, Utility x2 7099 | -5/Factory | Loaded intel: 48 interactive machine locations 7481 | -5/Factory | Lost 3 parts (1n1u1w) 7778 | -5/Factory | Discovered new exit (range 35) 7824 | -5/Factory | Discovered new exit (range 78) 7864 | -5/Factory | Discovered new exit (range 64) 8822 | -5/Factory | Fabricated Exp. Terrain Scanner (x1) 9067 | -5/Factory | Entered Extension 9226 | -5/Extension | Rescued A7 9256 | -5/Extension | Rescued a captive Derelict 9510 | -5/Extension | Rescued a captive Derelict 9511 | -5/Extension | Rescued a captive Derelict 9553 | -5/Extension | Energy Cycler disabled 9554 | -5/Extension | Rescued a captive Derelict 9555 | -5/Extension | Rescued a captive Derelict 9556 | -5/Extension | Rescued a captive Derelict 9562 | -5/Extension | Rescued a captive Derelict 9562 | -5/Extension | Rescued a captive Derelict 9567 | -5/Extension | Rescued a captive Derelict 9584 | -5/Extension | Rescued a captive Derelict 9590 | -5/Extension | Build established: Hacker-Mutant 9759 | -5/Extension | Spotted B-75 Beast 9767 | -5/Extension | Spotted B-75 Beast 9780 | -5/Extension | Allies destroyed B-75 Beast 9798 | -5/Extension | Destroyed B-75 Beast 9804 | -5/Extension | Discovered new exit (range 15) 10077 | -5/Extension | Extracted ID and sensor layout for unrecognized location from A7's data core 10249 | -5/Extension | Discovered new exit (range 10) 10251 | -5/Extension | Discovered new exit (range 6) 10269 | -5/Extension | Entered Cetus 10269 | -5/Cetus | Accompanied by 5 allies 10295 | -5/Cetus | Spotted Cetus Guard 10295 | -5/Cetus | Spotted Cetus Guard 10307 | -5/Cetus | Spotted Cetus Guard 10307 | -5/Cetus | Spotted Cetus Guard 10312 | -5/Cetus | Rewired Cetus Guard 10312 | -5/Cetus | Allies destroyed Cetus Guard 10319 | -5/Cetus | Destroyed Cetus Guard 10321 | -5/Cetus | Allies destroyed Cetus Guard 10428 | -5/Cetus | Discovered new exit (range 16) 10461 | -5/Cetus | Spotted Cetus Guard 10461 | -5/Cetus | Spotted Cetus Guard 10465 | -5/Cetus | Spotted Cetus Guard 10468 | -5/Cetus | Destroyed Cetus Guard 10476 | -5/Cetus | Destroyed Cetus Guard 10476 | -5/Cetus | Allies destroyed Cetus Guard 10477 | -5/Cetus | Spotted Cetus Guard 10483 | -5/Cetus | Destroyed Cetus Guard 10500 | -5/Cetus | Discovered new exit (range 16) 10511 | -5/Cetus | Met Revision 17 10584 | -5/Cetus | Entered Archives 10584 | -5/Archives | Accompanied by 1 ally 10633 | -5/Archives | Build established: Hauler-Mutant 10687 | -5/Archives | Discovered new exit (range 15) 10755 | -5/Archives | Discovered new exit (range 16) 10791 | -5/Archives | Discovered new exit (range 15) 10887 | -5/Archives | Entered Hub_04(d) 11110 | -5/Hub_04(d) | Discovered new exit (range 18) 11240 | -5/Hub_04(d) | Build established: Hacker-Mutant 11241 | -5/Hub_04(d) | Lost 3 parts (2u1w) 11281 | -5/Hub_04(d) | Core integrity fell below 50% 11578 | -5/Hub_04(d) | Network Hub disabled 11589 | -5/Hub_04(d) | Network Hub disabled 11590 | -5/Hub_04(d) | System corruption reached 10% 11604 | -5/Hub_04(d) | Spotted Lightning 11605 | -5/Hub_04(d) | Spotted Lightning 11605 | -5/Hub_04(d) | Spotted Lightning 11616 | -5/Hub_04(d) | Spotted Lightning 11618 | -5/Hub_04(d) | Entered Factory 11618 | -4/Factory | Evolved 2 slots: Utility x2 11774 | -4/Factory | Found Quantum Capacitor 11826 | -4/Factory | Identified exit to Garrison 12023 | -4/Factory | Fabricated Exp. Terrain Scan Processor (x1) 12125 | -4/Factory | Local fabrication network quarantined 12175 | -4/Factory | Fabricated Exp. Utility Shielding? 12331 | -4/Factory | Identified exit to Upper Caves 12331 | -4/Factory | Identified exit to Research 12505 | -4/Factory | Sucked down chute 12505 | -4/Factory | Entered Waste 12506 | -4/Waste | Met a frightened Derelict 12545 | -4/Waste | Spotted C-40 Crusher 12551 | -4/Waste | Destroyed C-40 Crusher 12551 | -4/Waste | Spotted C-40 Crusher 12553 | -4/Waste | Spotted C-40 Crusher 12557 | -4/Waste | Spotted C-40 Crusher 12570 | -4/Waste | Spotted C-40 Crusher 12572 | -4/Waste | Destroyed C-40 Crusher 12572 | -4/Waste | Destroyed C-40 Crusher 12581 | -4/Waste | Destroyed C-40 Crusher 12591 | -4/Waste | Crushed by Compactor (1 part destroyed, 2 dropped) 12619 | -4/Waste | Destroyed C-40 Crusher 12624 | -4/Waste | Found Damper Plating 12630 | -4/Waste | Spotted C-40 Crusher 12685 | -4/Waste | Discovered new exit (range 13) 12702 | -4/Waste | Entered Factory 12904 | -4/Factory | Local fabrication network quarantined 12963 | -4/Factory | Fabricated Exp. Terrain Scanner (x1) 13093 | -4/Factory | Identified exit to Garrison 13096 | -4/Factory | Entered Garrison 13126 | -4/Garrison | Triggered checkpoint 13152 | -4/Garrison | Garrison Relay disabled 13213 | -4/Garrison | Triggered checkpoint 13276 | -4/Garrison | Spotted B-86 Titan 13288 | -4/Garrison | Triggered checkpoint 13322 | -4/Garrison | Destroyed B-86 Titan 13409 | -4/Garrison | Discovered new exit (range 9) 13446 | -4/Garrison | Triggered checkpoint 13460 | -4/Garrison | Build established: Scavenger-Mutant 13731 | -4/Garrison | Spotted B-86 Titan 13921 | -4/Garrison | Triggered checkpoint 14030 | -4/Garrison | Triggered checkpoint 14148 | -4/Garrison | Discovered new exit (range 13) 14191 | -4/Garrison | Installed Relay Interface Framework 14200 | -4/Garrison | Entered Factory 14574 | -4/Factory | Discovered exit to Research (range 30) 14690 | -4/Factory | Repaired Adv. Weapon Cycler 14695 | -4/Factory | Local fabrication network quarantined 14709 | -4/Factory | Fabricated Exp. Weapon Shielding? 14713 | -4/Factory | Repaired Exp. Utility Shielding? 14759 | -4/Factory | Repaired Broken Centrium Heavy Treads? 14763 | -4/Factory | Repaired Imp. Weapon Shielding? 14809 | -4/Factory | Repaired Lrg. Storage Unit 14884 | -4/Factory | Entered Upper Caves 14948 | -4/Upper Caves | Spotted B-86 Titan 15072 | -4/Upper Caves | Core integrity fell below 50% 15174 | -4/Upper Caves | Discovered new exit (range 30) 15209 | -4/Upper Caves | Learned location of Armory (-3) 15212 | -4/Upper Caves | Entered another Upper Caves area 15214 | -4/Upper Caves | Spotted B-86 Titan 15220 | -4/Upper Caves | Discovered exit to Research (range 8) 15255 | -4/Upper Caves | Attracted the attention of an 0b10 checkpoint 15263 | -4/Upper Caves | Crushed by falling debris 15456 | -4/Upper Caves | Encountered a Warlord checkpoint 15460 | -4/Upper Caves | Discovered new exit (range 26) 15511 | -4/Upper Caves | Entered Zhirov 15511 | -4/Zhirov | Discovered new exit (range 3) 15527 | -4/Zhirov | Met Zhirov 15543 | -4/Zhirov | Learned location of Quarantine (-3) 15543 | -4/Zhirov | Learned location of Testing (-2) 15543 | -4/Zhirov | Learned location of Command (-1) 15548 | -4/Zhirov | Zhirov requested help retrieving the SGEMP Prototype 15561 | -4/Zhirov | Found Alien Artifact 15561 | -4/Zhirov | Identified Integrated Dissipator 15561 | -4/Zhirov | Installed Integrated Dissipator, increased core heat dissipation (+2%) 15633 | -4/Zhirov | Found Alien Artifact 15676 | -4/Zhirov | Entered Proximity Caves 15715 | -3/Proximity Caves | Build established: Hacker-Mutant 15805 | -3/Proximity Caves | Discovered exit to Research (range 29) 15825 | -3/Proximity Caves | Spotted B-86 Titan 15865 | -3/Proximity Caves | Entered Research 15865 | -3/Research | Evolved 2 slots: Utility x2 15872 | -3/Research | Identified exit to Armory 15872 | -3/Research | Identified exit to Quarantine 16052 | -3/Research | Build established: Hacker-Scout 16125 | -3/Research | Fabricated Mni. Smartbomb Launcher (x1) 16273 | -3/Research | Lost 3 parts (1p2u) 16472 | -3/Research | Identified Transdimensional Reconstructor 16609 | -3/Research | Build established: Hauler-Ninja 16665 | -3/Research | Local fabrication network quarantined 16698 | -3/Research | Found Enh. Force Lance 16706 | -3/Research | Found Prototype Slashing Weapon 16706 | -3/Research | Identified Nanosword 16804 | -3/Research | Fabricated Exp. Propulsion Shielding? 16826 | -3/Research | System corruption reached 10% 16914 | -3/Research | Entered Armory 16914 | -3/Armory | Accompanied by 1 ally 16930 | -3/Armory | Found Gamma Bomb Array 16959 | -3/Armory | Central database locked down 17006 | -3/Armory | Fabricated Cmb. Antigrav System (x2) 17048 | -3/Armory | Fabricated Cmb. Antigrav System (x2) 17110 | -3/Armory | Fabricated Com. Tesla Bomb Launcher (x1) 17173 | -3/Armory | Fabricated Com. Tesla Bomb Launcher (x1) 17309 | -3/Armory | Local fabrication network quarantined 17336 | -3/Armory | Build established: Machinist-Scout 17388 | -3/Armory | Repaired Exp. Utility Shielding? 17442 | -3/Armory | Repaired Exp. Weapon Shielding 17550 | -3/Armory | Discovered new exit (range 24) 17644 | -3/Armory | Found Prototype Device 17644 | -3/Armory | Identified Exp. Thermal Shield 17678 | -3/Armory | P-80 Master assimilated allied Director 8a 17816 | -3/Armory | Destroyed 7 combat bots 17894 | -3/Armory | Discovered new exit (range 13) 17928 | -3/Armory | Discovered new exit (range 24) 17994 | -3/Armory | Entered Lab 17994 | -3/Lab | Discovered new exit (range 9) 18002 | -3/Lab | Hidden lab's door opened automatically 18002 | -3/Lab | Sensor layout match revealed 18003 | -3/Lab | Gained access to the hidden lab's interior 18023 | -3/Lab | Found Prototype Special Weapon 18038 | -3/Lab | Found Prototype Device 18038 | -3/Lab | Identified AEGIS Remote Shield 18056 | -3/Lab | Found Integrated Dissipator 18056 | -3/Lab | Installed Integrated Dissipator, increased core heat dissipation (+2%) 18063 | -3/Lab | Found Transdimensional Reconstructor 18072 | -3/Lab | Found Alien Artifact 18085 | -3/Lab | Found Prototype Hackware 18092 | -3/Lab | Found Prototype Energy Cannon 18092 | -3/Lab | Identified Warp Cannon 18097 | -3/Lab | Found Prototype Energy Cannon 18097 | -3/Lab | Identified Potential Cannon 18137 | -3/Lab | Found Alien Artifact 18143 | -3/Lab | Unable to decrypt terminal 18148 | -3/Lab | Entered Research 18148 | -2/Research | Evolved 2 slots: Utility x2 18187 | -2/Research | Identified Quantum Router 18300 | -2/Research | Identified Core Expander 18300 | -2/Research | Identified Core Reset Matrix 18395 | -2/Research | Discovered new exit (range 27) 18451 | -2/Research | Repaired Particle Reactor 18493 | -2/Research | Repaired Exp. Propulsion Shielding 18536 | -2/Research | Installed Core Expander, added new Utility slot 18538 | -2/Research | Used Core Reset Matrix 18544 | -2/Research | Identified exit to Access 18624 | -2/Research | Fabricated EM Dispersion Field? 18691 | -2/Research | Fabricated Adv. Powered Armor (x1) 18737 | -2/Research | Fabricated Cmb. Linear Gravjet (x2) 18783 | -2/Research | Fabricated Cmb. Linear Gravjet (x2) 18808 | -2/Research | Entered Access 18808 | -1/Access | Accompanied by 1 ally 18808 | -1/Access | Evolved 2 slots: Utility x2 18978 | -1/Access | Discovered new exit (range 27) 18980 | -1/Access | Identified exit to Surface 19202 | *** | Heading to fleet! Last Messages --------------- 19100_ R-10 Processor collects Unknown Hover Unit. 19103_ K-01 Serf collects debris. 19157_ U-05 Engineer builds a Wall. 19162_ Connecting with Terminal... 19176_ U-05 Engineer builds a Wall. 19178_ Dropped Potential Cannon. 19181_ Acquired Potential Cannon. 19183_ Sealed Barrier breached. 19183_ Terminal disabled. 19184_ U-05 Engineer lays Concrete. 19187_ Main Access Shell breached. 19188_ U-05 Engineer lays Concrete. 19188_ K-01 Serf collects debris. 19189_ U-05 Engineer lays Concrete. 19193_ K-01 Serf collects debris. 19194_ U-05 Engineer lays Concrete. 19197_ K-01 Serf collects debris. 19197_ U-05 Engineer lays Concrete. 19200_ K-01 Serf collects debris. 19201_ U-05 Engineer lays Concrete. Map ----- +----------------------------------------------------+ | ?????????????????????????????????????????????????? | | ?????????????????????????????????????????????????? | | ?????????????????????????????????????????????????? | | ?????????????????????????????????????????????????? | | ?????????????????????????????????????????????????? | | ?????????????????????????????????????????????????? | | ?????????????????????????????????????????????????? | | ????????????????????????????????????????#????? ??? | | ?????????????????????????????????????#????#??? ? ? | | ????????????????????????????????#????????#???????# | | ?????????????????????????????#????????? ?? # ? | | ?????????????? ???????????g?g????? ? ? ? ??#?? | | ???????#### ?? ##??????????# ? ? ? ? #? ?? | | ???? ###### ##?##### ???????#???? ?? ? ?# ?? | | ? ###### ####?### ??##? ?? ? ?? # " | | ?#?### ######## ? ???#? ? # | | ##?### #####?## ? ##?############ | | ###?## ?######??####################### | | #####?##### ##?############################# | | # ?? # #######"######################## " " | | # ?# """T"""" """" #### "T" | | ? ? # """ " """" BB #### ?""" | | # # RR u """"" """" BB ######### | | ##+##+##### " """" | | ## ##### k "" " """" | | ## ?##### u u @" " """" | | ## ##### R " """" | | ## ?##### " """""" """" BB ######### | | ##### " """" BB ## | | ##### " """" ## | | ##### #######"######################" | | ##### #######"######################"" | | ##### ##############################"" | | ##### ##############################"" | | ##### ##############################"" | | ##### # ##############"T | | # ##############"" | | # ##############"" | | # ##############"" | | # ##############"" | | # ##############" | | %# ! ############## * | | %+ ! ############## | | # ############## | | "" "" # = ############## ![= | | ""T"" ###############################["#### | | """ ##################### ######!#### | | | | / | | ##########+########## ########### | +----------------------------------------------------+ Best States ------------- Heat Dissipation 92 Coolant Potential 100 Energy Generation 25 Energy Capacity 950 Matter Stores 500 Matter Capacity 500 Sight Range 20 Robot Scan Range 22 Terrain Scan Range 30 Terrain Scan Density 1010 ECM Strength 3 Jamming Range 16 Armor Coverage 2400 Resistance: EM 90 Propulsion Shielding 90 Utility Shielding 90 Weapon Shielding 90 Weapon Cycling 25 Evasion (%) 55 Armor Integrity Analysis 66 Recoil Reduction 4 Matter Filtering 50 Salvage Targeting 3 Offensive Hacking 38 Defensive Hacking 25 Item Schematics ----------------- Cmb. Linear Gravjet | -2/Research | Hacked EM Dispersion Field | -2/Research | Hacked Adv. Powered Armor | -2/Research | Hacked Mni. Fusion Reactor | -2/Research | Hacked Robot Schematics ------------------ None Fabricated ------------ Exp. Terrain Scanner | x1 | -5/Factory Exp. Terrain Scan Processor | x1 | -4/Factory Exp. Utility Shielding | x1 | -4/Factory Exp. Terrain Scanner | x1 | -4/Factory Exp. Weapon Shielding | x1 | -4/Factory Mni. Smartbomb Launcher | x1 | -3/Research Exp. Propulsion Shielding | x1 | -3/Research Cmb. Antigrav System | x2 | -3/Armory Cmb. Antigrav System | x2 | -3/Armory Com. Tesla Bomb Launcher | x1 | -3/Armory Com. Tesla Bomb Launcher | x1 | -3/Armory EM Dispersion Field | x1 | -2/Research Adv. Powered Armor | x1 | -2/Research Cmb. Linear Gravjet | x2 | -2/Research Cmb. Linear Gravjet | x2 | -2/Research Alien Tech Used ----------------- Integrated Dissipator Core Expander Core Reset Matrix Achievements -------------- None Challenges ------------ None Game ------ Seed GatlingCoilHumpback Manual? 0 Play Time 03:19:39 Cumulative 803.8 hours Start 2020.07.23 @ 11:40:33 End 2020.07.23 @ 15:19:56 Sessions 1 Manual Loads 0 Difficulty Rogue Special Mode None Game No. 231 Rogue 231 Adventurer 0 Explorer 0 Win Type 2 Total 42 Types 32/0/3/3/2/1/1 Lore% 96 Gallery% 98 Achievement% 94 Wizard Run 0 Options --------- ASCII 0 Keyboard 1 Movement Numpad Keybinds 0 Fullscreen 1 Font 18/SmallcapsGlow Map View 76x50 Tactical HUD 1 Map Filters NONE Filters NONE Steam 1 RUN: d0d0f39c-034e-4666-b4a1-13208a60534c